bitfinex-derivatives/quotes_SOLF0:USTF0_20250516
["timestamp","ask_amount","ask_price","bid_price","bid_amount"]
[1747416355278,117.56,172.23,172.16,5.8059]
[1747416355477,117.56,172.23,172.11,8.48133226]
[1747416355675,5.8045,172.21,172.17,5.8056]
[1747416356079,58.76,172.22,172.11,8.48133226]
[1747416356271,58.76,172.22,172.12,2.09461602]
[1747416356477,58.78,172.23,172.13,60.87461602]
[1747416356784,58.76,172.22,172.14,2.09461602]
[1747416356982,58.76,172.22,172.19,5.805]
[1747416357175,58.76,172.22,172.13,58.78]
[1747416357374,58.76,172.22,172.2,5.8045]
[1747416360577,58.76,172.22,172.21,5.8044]
[1747416360782,58.78,172.23,172.21,5.8044]
[1747416360985,117.54,172.23,172.21,5.8044]
[1747416361980,5.7173,172.24,172.14,78.83493226]
[1747416362185,58.76,172.26,172.15,58.76]
[1747416362387,117.5,172.26,172.17,8.48133226]
[1747416362685,58.76,172.26,172.18,2.09061712]
[1747416362887,58.76,172.26,172.19,60.85061712]
[1747416363184,58.74,172.27,172.2,2.09061712]
[1747416363380,58.74,172.27,172.21,2.09061712]
[1747416363687,58.74,172.29,172.22,2.09061712]
[1747416363982,58.74,172.29,172.23,2.09061712]
[1747416364185,58.74,172.29,172.19,58.76]
[1747416364377,58.74,172.29,172.2,2.08618993]
[1747416364579,58.74,172.29,172.21,2.08618993]
[1747416364777,5.8027,172.26,172.23,5.8035]
[1747416365180,5.8027,172.26,172.22,5.8039]
[1747416366088,5.8031,172.25,172.23,5.8037]
[1747416366281,58.74,172.29,172.19,58.76]
[1747416366480,58.74,172.28,172.2,10.56466245]
[1747416366678,5.8025,172.27,172.24,5.8032]
[1747416367190,5.8027,172.26,172.22,5.8039]
[1747416367387,58.74,172.28,172.22,5.8039]
[1747416367994,5.8029,172.26,172.22,5.8039]
[1747416368398,58.74,172.28,172.23,5.8037]
[1747416368693,5.8028,172.26,172.19,58.76]
[1747416368891,58.74,172.28,172.21,5.8042]
[1747416369190,5.803,172.26,172.21,5.8042]
[1747416369390,5.803,172.26,172.21,5.8044]
[1747416369688,5.803,172.26,172.19,58.76]
[1747416370094,5.803,172.26,172.22,5.8039]
[1747416370392,5.8025,172.27,172.19,58.76]
[1747416371394,64.5422,172.28,172.24,5.8032]
[1747416371693,64.5422,172.28,172.19,58.76]
[1747416371995,64.5422,172.28,172.25,5.8028]
[1747416372299,58.74,172.28,172.19,58.76]
[1747416372596,58.74,172.28,172.24,5.8034]
[1747416372892,5.8024,172.27,172.24,5.8034]
[1747416373093,58.74,172.28,172.24,5.8034]
[1747416373397,64.5422,172.28,172.24,5.8034]
[1747416374295,64.5422,172.28,172.25,5.8031]
[1747416375096,64.5422,172.28,172.24,5.8033]
[1747416376199,58.74,172.28,172.19,58.76]
[1747416376896,5.8029,172.26,172.19,58.76]
[1747416377193,58.7,172.27,172.19,58.76]
[1747416377392,5.804,172.23,172.19,64.565]
[1747416377697,5.804,172.23,172.16,60.5676]
[1747416377899,5.8043,172.22,172.18,5.8051]
[1747416378799,5.8039,172.23,172.19,5.805]
[1747416379001,5.8039,172.23,172.16,58.7]
[1747416379299,5.8041,172.22,172.16,58.7]
[1747416379493,58.7,172.23,172.14,116.89743019]
[1747416379696,67.18133226,172.23,172.14,116.89743019]
[1747416379899,5.8053,172.19,172.14,122.70403019]
[1747416380096,58.7,172.18,172.14,122.70403019]
[1747416381300,64.5054,172.18,172.14,116.89743019]
[1747416381600,117.4,172.18,172.11,58.7]
[1747416381800,5.8058,172.17,172.12,5.8071]
[1747416382501,117.4,172.18,172.09,2.07429867]
[1747416382705,117.4,172.18,172.1,2.07404786]
[1747416383001,123.2056,172.18,172.1,2.07404786]
[1747416383203,117.4,172.18,172.1,2.07404786]
[1747416383605,64.5056,172.18,172.14,5.8065]
[1747416383807,58.7,172.18,172.14,5.8065]
[1747416384613,5.8058,172.17,172.14,5.8065]
[1747416384904,5.8058,172.17,172.1,2.0737954]
[1747416385112,5.8058,172.17,172.09,8.48133226]
[1747416385306,5.8058,172.17,172.1,2.07205734]
[1747416385509,5.8058,172.17,172.14,5.8065]
[1747416385709,64.5054,172.18,172.1,2.07268812]
[1747416386012,58.7,172.18,172.11,2.07249388]
[1747416386211,58.7,172.18,172.1,2.07249388]
[1747416386416,5.806,172.17,172.14,5.8064]
[1747416387617,5.8062,172.16,172.14,5.8064]
[1747416388614,5.8059,172.17,172.14,5.8064]
[1747416389011,58.7,172.18,172.13,5.8069]
[1747416389411,58.7,172.18,172.09,8.48133226]
[1747416389614,58.7,172.18,172.12,5.8072]
[1747416389811,5.8063,172.16,172.09,8.48133226]
[1747416390017,5.8063,172.16,172.1,2.07587647]
[1747416390220,5.8063,172.16,172.13,5.8069]
[1747416391020,64.5055,172.18,172.14,5.8067]
[1747416391227,58.7,172.18,172.14,5.8067]
[1747416392421,64.5056,172.18,172.14,5.8067]
[1747416393226,58.7,172.18,172.09,8.48133226]
[1747416393422,58.7,172.18,172.1,2.07864008]
[1747416393625,5.8071,172.13,172.11,2.07864008]
[1747416393828,58.7,172.13,172.06,2.08113711]
[1747416394025,58.72,172.12,172.07,2.08113711]
[1747416394226,58.72,172.12,172.02,58.72]
[1747416394429,64.4892,172.12,172.02,58.72]
[1747416394730,64.4892,172.12,171.99,131.8958859]
[1747416395026,64.4892,172.12,171.99,73.1958859]
[1747416395226,5.8088,172.08,171.99,73.1958859]
[1747416395423,58.7,172.07,171.99,73.1958859]
[1747416396434,64.5091,172.07,172.03,5.8104]
[1747416396628,58.7,172.07,171.99,73.1958859]
[1747416397224,58.7,172.07,172.0,2.08428301]
[1747416397432,58.7,172.07,172.01,2.08428301]
[1747416397629,58.7,172.07,172.02,2.08428301]
[1747416397830,58.7,172.07,172.0,5.8114]
[1747416398029,5.8107,172.03,172.01,2.08290642]
[1747416398219,58.7,172.07,171.99,14.4758859]
[1747416399432,5.8107,172.03,171.99,14.4758859]
[1747416399633,64.5307,172.03,171.99,14.4758859]
[1747416399828,58.72,172.03,171.99,14.4758859]
[1747416400129,60.5579,172.03,171.99,14.4758859]
[1747416400329,5.811,172.02,171.99,14.4758859]
[1747416400731,64.2455,172.03,171.99,14.4758859]
[1747416401531,5.8115,172.0,171.99,14.4758859]
[1747416401834,58.72,172.0,171.94,18.09485737]
[1747416402037,58.72,171.99,171.94,23.90825737]
[1747416402230,58.72,171.99,171.94,18.09485737]
[1747416402625,58.72,171.99,171.94,21.92305737]
[1747416403631,59.54,172.02,171.94,30.40438963]
[1747416404134,65.3511,172.02,171.97,5.8122]
[1747416404634,59.54,172.02,171.97,5.8122]
[1747416405436,5.8112,172.01,171.96,5.8127]
[1747416407130,5.8112,172.01,171.97,5.8124]
[1747416407337,65.3509,172.02,171.97,5.8124]
[1747416407637,65.3509,172.02,171.94,21.92305737]
[1747416408337,5.8112,172.01,171.97,5.8122]
[1747416409733,5.8112,172.01,171.98,5.8121]
[1747416410231,5.8112,172.01,171.94,21.92305737]
[1747416410232,65.3509,172.02,171.99,5.8116]
[1747416410434,59.54,172.02,171.94,21.92305737]
[1747416411124,65.3508,172.02,171.94,21.92305737]
[1747416411331,59.54,172.02,171.94,21.92305737]
[1747416413538,64.5306,172.03,171.94,3.8282]
[1747416413937,64.5306,172.03,171.95,59.36]
[1747416414238,58.72,172.03,172.01,5.8112]
[1747416414439,58.72,172.03,171.95,59.36]
[1747416414926,64.5307,172.03,172.0,5.8115]
[1747416415836,64.5307,172.03,172.01,5.8112]
[1747416416138,64.5307,172.03,171.95,59.36]
[1747416416439,64.5307,172.03,172.0,5.8113]
[1747416416826,5.8109,172.02,171.95,59.36]
[1747416417030,58.72,172.03,171.98,5.8119]
[1747416417336,5.8112,172.01,171.98,5.8119]
[1747416417935,5.8118,171.99,171.94,3.8282]
[1747416418538,59.34,172.0,171.94,3.8282]
[1747416418739,65.1517,172.0,171.96,5.8128]
[1747416419638,65.1517,172.0,171.95,5.8131]
[1747416419639,5.8118,171.99,171.95,5.8131]
[1747416419833,59.34,172.0,171.94,3.8282]
[1747416420645,59.34,172.0,171.97,5.8122]
[1747416420939,58.72,172.03,171.94,3.8282]
[1747416420940,118.0,172.03,171.94,3.8282]
[1747416421135,118.0,172.03,171.96,8.48133226]
[1747416421836,59.3,172.04,171.96,8.48133226]
[1747416422237,59.3,172.04,172.02,5.8107]
[1747416422836,65.1102,172.04,172.01,5.811]
[1747416423443,5.8102,172.04,172.01,5.811]
[1747416424142,5.8102,172.04,172.0,5.8114]
[1747416425042,5.8102,172.04,172.01,5.8111]
[1747416425241,58.76,172.06,171.97,58.76]
[1747416425440,58.76,172.06,171.99,8.48133226]
[1747416426037,58.76,172.1,171.99,8.48133226]
[1747416426244,59.16,172.09,172.02,8.48133226]
[1747416426439,58.76,172.16,172.03,59.28]
[1747416426742,5.8077,172.12,172.05,8.48133226]
[1747416427045,5.8077,172.12,172.05,67.24133226]
[1747416427233,59.28,172.14,172.06,2.0708766]
[1747416427439,59.28,172.14,172.05,67.24133226]
[1747416427647,59.28,172.14,172.06,2.07070223]
[1747416427844,59.28,172.14,172.05,67.24133226]
[1747416428042,59.28,172.14,172.06,2.07073753]
[1747416428346,5.8079,172.11,172.08,5.8086]
[1747416428749,59.28,172.14,172.08,5.8086]
[1747416428938,5.8076,172.12,172.09,5.8084]
[1747416429142,5.8076,172.12,172.05,58.76]
[1747416429345,59.28,172.14,172.05,58.76]
[1747416429548,5.8076,172.12,172.08,5.8088]
[1747416429742,59.28,172.14,172.03,12.22583226]
[1747416429945,59.28,172.14,172.04,61.31297921]
[1747416430144,5.808,172.11,172.07,5.8089]
[1747416431447,5.8076,172.12,172.08,5.8087]
[1747416434548,5.8076,172.12,172.07,5.809]
[1747416435450,5.8078,172.11,172.06,5.8093]
[1747416435650,5.8078,172.11,172.04,59.24]
[1747416435849,59.28,172.14,172.05,2.07847636]
[1747416436039,5.8076,172.12,172.06,2.07847636]
[1747416436243,5.8076,172.12,172.07,5.8089]
[1747416437152,5.8076,172.12,172.08,5.8088]
[1747416437551,5.8078,172.11,172.04,59.24]
[1747416437748,5.8078,172.11,172.05,2.08136626]
[1747416437944,59.28,172.14,172.06,7.89056626]
[1747416438141,59.28,172.14,172.04,59.24]
[1747416438353,59.28,172.14,172.04,5.8099]
[1747416438944,5.809,172.08,172.04,5.8099]
[1747416440052,59.22,172.09,172.04,5.8099]
[1747416440053,65.0286,172.09,172.04,5.8099]
[1747416440255,59.22,172.09,172.03,3.7445]
[1747416440553,59.22,172.09,172.04,2.08327555]
[1747416440756,59.22,172.09,172.03,3.7445]
[1747416440945,59.22,172.09,172.04,2.08338432]
[1747416441146,59.22,172.09,172.03,3.7445]
[1747416441348,65.0285,172.09,172.05,5.8095]
[1747416441854,65.0285,172.09,172.05,5.8096]
[1747416442355,59.22,172.09,171.88,1.01146619]
[1747416442555,59.22,172.09,172.0,61.30302578]
[1747416442758,59.22,172.09,172.01,2.08302578]
[1747416443053,59.22,172.09,172.0,59.22]
[1747416443054,59.22,172.09,172.02,2.08302578]
[1747416443353,59.22,172.09,172.0,59.22]
[1747416443557,59.22,172.09,172.01,2.08396078]
[1747416443754,5.8088,172.08,172.04,5.81]
[1747416446055,65.0286,172.09,172.05,5.8098]
[1747416446954,59.22,172.09,172.05,5.8098]
[1747416447162,59.22,172.09,172.06,5.8094]
[1747416448158,65.0285,172.09,172.05,5.8097]
[1747416448352,59.22,172.09,172.02,3.9132]
[1747416448557,59.22,172.09,172.03,2.08288582]
[1747416448857,59.22,172.09,172.04,2.08288582]
[1747416449054,65.0287,172.09,172.04,5.8101]
[1747416449960,65.0287,172.09,172.05,5.8098]
[1747416450555,5.8088,172.08,172.02,3.9132]
[1747416450754,59.22,172.09,172.03,2.08344588]
[1747416450961,59.22,172.09,172.02,2.0079]
[1747416451162,59.22,172.09,172.03,2.08417135]
[1747416451363,59.22,172.09,171.99,129.35218969]
[1747416451561,61.0766,172.09,172.0,2.08468438]
[1747416451751,61.0766,172.09,172.01,2.08468438]
[1747416451950,61.0766,172.09,171.99,129.35218969]
[1747416452162,61.0766,172.09,172.0,2.08534588]
[1747416452363,63.6642,172.09,171.99,129.35218969]
[1747416452659,63.6642,172.09,172.0,2.08571311]
[1747416452855,63.6642,172.09,171.99,129.35218969]
[1747416453862,5.811,172.02,171.99,129.35218969]
[1747416454064,58.94,172.01,171.99,129.35218969]
[1747416456066,58.94,172.01,172.0,2.0868658]
[1747416456369,58.94,172.05,172.02,5.8107]
[1747416456558,58.94,172.05,171.99,129.35218969]
[1747416456758,58.94,172.05,172.0,2.08659327]
[1747416456961,58.96,172.05,172.01,2.08659327]
[1747416457162,58.96,172.05,172.02,2.0867705]
[1747416457365,58.96,172.05,171.99,129.35218969]
[1747416457567,58.96,172.05,172.0,2.0865666]
[1747416457768,58.96,172.05,172.01,2.0865666]
[1747416457966,58.96,172.05,172.02,2.0865666]
[1747416458167,58.96,172.05,171.99,129.35218969]
[1747416458469,58.96,172.05,172.0,2.0868934]
[1747416458765,58.96,172.05,172.01,2.0868934]
[1747416458965,58.96,172.05,172.02,2.0868934]
[1747416459169,58.96,172.05,172.02,5.8105]
[1747416459768,64.7698,172.05,172.02,5.8105]
[1747416460865,58.96,172.05,172.03,7.89782443]
[1747416461067,58.96,172.05,172.03,5.8104]
[1747416461575,64.7698,172.05,172.02,5.8107]
[1747416461765,64.7698,172.05,172.03,2.08766615]
[1747416461965,64.7698,172.05,172.02,5.8107]
[1747416462165,64.7698,172.05,172.03,2.08760672]
[1747416462367,64.7698,172.05,172.02,5.8107]
[1747416462570,64.7698,172.05,172.03,2.08774892]
[1747416462771,59.24,172.07,172.04,2.08743463]
[1747416462967,58.84,172.08,172.05,2.08743463]
[1747416463173,58.84,172.08,172.0,1.8537]
[1747416463373,58.94,172.1,172.01,2.08750365]
[1747416463677,58.82,172.09,172.02,2.08750365]
[1747416463880,64.6285,172.09,172.03,3.98340365]
[1747416464074,64.6285,172.09,172.04,2.08750365]
[1747416464277,64.6285,172.09,172.05,2.08750365]
[1747416464471,64.6285,172.09,172.06,7.89670365]
[1747416464673,64.6085,172.09,172.07,2.0883644]
[1747416464873,64.6085,172.09,172.06,5.8092]
[1747416465076,64.6085,172.09,172.07,2.08810334]
[1747416465275,5.8089,172.08,172.03,1.8959]
[1747416465478,5.8089,172.08,172.04,2.08841873]
[1747416465678,5.8089,172.08,172.05,2.08841873]
[1747416465878,5.8094,172.07,172.06,2.08841873]
[1747416466085,58.8,172.09,172.0,1.8537]
[1747416466286,58.8,172.09,172.02,5.8108]
[1747416466480,58.8,172.09,172.03,2.08936126]
[1747416466677,58.8,172.09,172.04,2.08936126]
[1747416466876,58.8,172.09,172.02,5.8108]
[1747416467179,58.8,172.09,172.03,2.09006148]
[1747416467379,5.8096,172.06,172.04,2.09006148]
[1747416467580,5.8096,172.06,172.02,5.8108]
[1747416467781,5.8096,172.06,172.03,2.09030005]
[1747416467980,5.8096,172.06,172.04,2.09030005]
[1747416468171,64.5898,172.05,172.01,5.811]
[1747416468371,64.5898,172.05,171.99,188.29218969]
[1747416468372,58.78,172.05,172.02,2.09009369]
[1747416468575,58.78,172.05,172.03,2.09067609]
[1747416468776,5.8104,172.04,172.0,5.8115]
[1747416468978,58.78,172.05,172.01,2.0907336]
[1747416469284,5.811,172.02,171.97,1.9559]
[1747416469486,58.78,172.01,171.98,2.09100856]
[1747416469783,58.78,172.01,171.92,3.8168]
[1747416469988,5.8119,171.99,171.95,5.813]
[1747416470180,5.8119,171.99,171.96,2.09157273]
[1747416470385,5.8119,171.99,171.97,2.09157273]
[1747416470587,58.78,172.01,171.98,2.09157273]
[1747416470781,58.78,172.01,171.99,2.09157273]
[1747416470990,58.78,172.01,172.0,2.09157273]
[1747416471182,58.78,172.01,172.0,7.90307273]
[1747416472888,58.78,172.01,172.0,2.09157273]
[1747416475891,58.78,172.01,172.0,2.09049695]
[1747416478982,58.78,172.01,171.95,58.94]
[1747416479187,58.78,172.01,171.96,2.09143302]
[1747416479488,117.72,172.01,171.97,2.09143302]
[1747416479690,117.72,172.01,171.98,2.09143302]
[1747416479891,117.72,172.01,171.93,1.844]
[1747416480092,117.72,172.01,171.94,2.09196235]
[1747416480394,5.8127,171.97,171.95,2.0926864]
[1747416480588,64.6127,171.97,171.96,2.0926864]
[1747416480890,126.22133226,171.97,171.88,137.28055863]
[1747416481191,126.22133226,171.97,171.89,7.90928853]
[1747416481393,126.22133226,171.97,171.9,2.09428853]
[1747416481588,5.8141,171.93,171.91,2.09428853]
[1747416481787,58.84,171.92,171.88,133.55165863]
[1747416481984,58.84,171.92,171.89,2.09333751]
[1747416482184,58.84,171.92,171.9,7.90803751]
[1747416482383,58.84,171.92,171.88,133.55165863]
[1747416482689,58.84,171.92,171.89,7.90703249]
[1747416482987,58.84,171.92,171.9,2.09203249]
[1747416483186,58.84,171.92,171.9,5.8148]
[1747416483791,117.78,171.92,171.84,3.7682]
[1747416483988,117.78,171.92,171.85,2.09230137]
[1747416484292,117.78,171.92,171.86,2.09230137]
[1747416484586,117.78,171.92,171.87,2.09230137]
[1747416484786,117.78,171.92,171.88,2.09230137]
[1747416484982,58.84,171.92,171.91,5.8145]
[1747416485487,58.84,171.92,171.86,58.96]
[1747416485688,58.84,171.92,171.9,5.8146]
[1747416485887,58.82,171.93,171.9,5.8146]
[1747416486083,58.82,171.93,171.91,5.8142]
[1747416486895,58.82,171.93,171.9,5.8148]
[1747416487684,58.82,171.93,171.91,5.8143]
[1747416487885,58.82,171.93,171.88,8.48133226]
[1747416488088,117.78,171.95,171.89,2.0877122]
[1747416488293,117.78,171.95,171.9,2.0877122]
[1747416488593,117.78,171.95,171.88,8.48133226]
[1747416488793,58.82,171.95,171.89,2.08778145]
[1747416488993,58.82,171.95,171.9,2.08778145]
[1747416489294,58.82,171.95,171.91,2.08777433]
[1747416489495,58.82,171.95,171.88,8.48133226]
[1747416489690,58.82,171.95,171.92,5.8139]
[1747416489996,58.82,171.95,171.88,8.48133226]
[1747416490186,58.82,171.95,171.92,5.8139]
[1747416490698,58.82,171.95,171.88,8.48133226]
[1747416490895,58.82,171.95,171.89,2.08719771]
[1747416491091,58.82,171.95,171.93,5.8137]
[1747416491292,58.82,171.95,171.88,8.48133226]
[1747416491494,58.8,171.98,171.89,2.08724263]
[1747416491793,58.82,171.97,171.9,60.88724263]
[1747416491995,58.82,171.97,171.91,5.82824263]
[1747416492197,58.82,171.97,171.92,2.08724263]
[1747416492386,58.82,171.97,171.93,2.08675966]
[1747416492587,58.82,171.97,171.91,3.741]
[1747416492785,58.82,171.97,171.92,2.08706354]
[1747416492987,58.82,171.97,171.96,5.8128]
[1747416493998,58.82,172.0,171.98,5.8119]
[1747416495096,64.6315,172.0,171.97,5.8124]
[1747416496698,58.82,172.0,171.98,5.8122]
[1747416497394,58.82,172.0,171.97,5.8124]
[1747416499102,58.82,172.0,171.91,12.22233226]
[1747416499300,58.82,172.0,171.92,2.08648318]
[1747416499505,58.82,172.0,171.93,2.08648318]
[1747416499697,58.82,172.0,171.96,5.8126]
[1747416500001,64.6315,172.0,171.91,12.22233226]
[1747416500200,64.6315,172.0,171.92,2.08562546]
[1747416500397,64.6315,172.0,171.93,2.08562546]
[1747416500598,64.6315,172.0,171.94,2.08561925]
[1747416500801,64.6315,172.0,171.96,5.8126]
[1747416502204,5.8118,171.99,171.96,5.8126]
[1747416503407,64.6316,172.0,171.96,5.8126]
[1747416504907,64.6316,172.0,171.97,5.8125]
[1747416505103,64.6316,172.0,171.91,12.22233226]
[1747416505303,64.6316,172.0,171.92,2.08538851]
[1747416505504,58.82,172.0,171.93,2.08538851]
[1747416505703,58.82,172.0,171.94,2.08538851]
[1747416505906,58.82,172.0,171.95,2.08538851]
[1747416506097,58.82,172.0,171.91,12.22233226]
[1747416506303,64.6317,172.0,171.92,2.08456446]
[1747416506503,64.6317,172.0,171.93,2.08456446]
[1747416506703,64.6317,172.0,171.97,5.8125]
[1747416507105,64.6317,172.0,171.91,12.22233226]
[1747416507302,64.6317,172.0,171.92,2.08574712]
[1747416507503,64.6317,172.0,171.93,2.08574712]
[1747416507706,64.6317,172.0,171.97,5.8123]
[1747416508711,64.6317,172.0,171.98,5.8121]
[1747416508910,58.82,172.0,171.98,5.8121]
[1747416510611,64.6315,172.0,171.98,5.8121]
[1747416511315,64.6315,172.0,171.97,5.8124]
[1747416512413,58.82,172.0,171.91,3.741]
[1747416512712,58.82,172.0,171.92,2.09137645]
[1747416512915,5.8131,171.96,171.93,2.09137645]
[1747416513114,64.6131,171.96,171.94,2.09137645]
[1747416513306,64.6131,171.96,171.91,3.741]
[1747416513504,64.6131,171.96,171.92,2.09196256]
[1747416513710,5.8133,171.95,171.93,2.09196256]
[1747416513911,5.8133,171.95,171.92,5.814]
[1747416514205,58.8,171.96,171.93,2.09337861]
[1747416514410,5.8135,171.94,171.87,58.8]
[1747416514613,5.8135,171.94,171.88,2.09390122]
[1747416514813,5.8135,171.94,171.89,2.09390122]
[1747416515016,5.8135,171.94,171.9,2.09390122]
[1747416515314,5.8135,171.94,171.91,2.09410448]
[1747416515616,5.8135,171.94,171.92,2.09410448]
[1747416515814,5.8135,171.94,171.9,5.8146]
[1747416516017,5.8135,171.94,171.91,2.09375542]
[1747416516216,5.8139,171.93,171.92,2.09375542]
[1747416516410,5.8139,171.93,171.87,58.8]
[1747416516610,58.8,171.92,171.88,2.09425187]
[1747416516812,58.8,171.92,171.89,2.09425187]
[1747416517015,58.8,171.92,171.9,2.09425187]
[1747416517212,58.8,171.92,171.89,5.815]
[1747416517414,58.8,171.92,171.9,2.09416638]
[1747416517716,58.8,171.92,171.89,5.815]
[1747416517911,58.8,171.92,171.9,2.09443781]
[1747416518109,58.8,171.92,171.89,5.815]
[1747416518309,58.8,171.92,171.9,2.09423772]
[1747416518521,58.8,171.92,171.89,5.815]
[1747416518718,58.8,171.92,171.9,7.90917658]
[1747416518915,58.8,171.92,171.91,2.09447658]
[1747416519416,58.8,171.95,171.91,2.09447658]
[1747416519616,58.8,171.95,171.92,2.09447658]
[1747416519814,5.8123,171.98,171.93,2.09447658]
[1747416520019,64.6123,171.98,171.94,2.09447658]
[1747416520221,64.6123,171.98,171.95,2.09447658]
[1747416520423,64.6123,171.98,171.95,5.813]
[1747416520715,64.6123,171.98,171.96,2.09252252]
[1747416520922,64.6123,171.98,171.95,5.813]
[1747416521123,64.6123,171.98,171.96,2.09244131]
[1747416521319,64.6123,171.98,171.95,5.813]
[1747416521519,58.8,171.98,171.96,7.90529324]
[1747416521721,58.8,171.98,171.96,5.8128]
[1747416521915,58.8,171.98,171.97,2.09267846]
[1747416522618,58.8,171.98,171.95,5.8131]
[1747416522619,64.6122,171.98,171.95,5.8131]
[1747416522823,64.6122,171.98,171.96,2.09287744]
[1747416523121,58.8,171.98,171.93,5.8138]
[1747416523316,58.8,171.98,171.94,2.09331999]
[1747416523517,58.8,171.98,171.95,2.09331999]
[1747416523713,58.8,171.98,171.92,1.9693]
[1747416523927,58.8,171.98,171.93,2.09625704]
[1747416524118,58.8,171.98,171.94,2.09625704]
[1747416524320,58.8,171.98,171.92,5.8141]
[1747416524522,5.8131,171.96,171.93,2.09674385]
[1747416524724,5.8131,171.96,171.94,2.09674385]
[1747416525029,5.8126,171.97,171.92,5.8141]
[1747416525227,5.8126,171.97,171.93,7.91002051]
[1747416525428,5.8126,171.97,171.94,2.09622051]
[1747416525627,5.8126,171.97,171.93,5.8138]
[1747416525831,5.8126,171.97,171.94,2.09600373]
[1747416526033,5.8126,171.97,171.93,5.8138]
[1747416526539,5.8126,171.97,171.94,2.09612332]
[1747416526736,5.8126,171.97,171.95,2.09619402]
[1747416527038,5.8126,171.97,171.94,5.8135]
[1747416527242,58.8,171.98,171.89,58.8]
[1747416527440,58.8,171.98,171.9,2.09618885]
[1747416527639,58.8,171.98,171.91,2.09618885]
[1747416527840,58.8,171.98,171.92,2.09618885]
[1747416528041,2.0083,172.03,171.93,2.09618885]
[1747416528341,58.8,172.0,171.97,5.8123]
[1747416528534,58.8,172.0,171.91,67.28133226]
[1747416528935,64.6116,172.0,171.96,5.8125]
[1747416529135,58.8,171.99,171.96,5.8125]
[1747416529745,64.6118,171.99,171.96,5.8125]
[1747416530040,64.6118,171.99,171.95,5.813]
[1747416530541,64.6118,171.99,171.96,2.09673528]
[1747416530836,64.6118,171.99,171.97,2.09673528]
[1747416531036,64.6118,171.99,171.95,5.813]
[1747416531229,64.6118,171.99,171.96,7.90967174]
[1747416531429,64.6118,171.99,171.97,2.09687174]
[1747416531633,64.6118,171.99,171.96,5.8128]
[1747416531833,64.6118,171.99,171.97,2.09715053]
[1747416532037,64.6118,171.99,171.96,5.8128]
[1747416532238,64.6118,171.99,171.97,2.0970753]
[1747416532440,64.6118,171.99,171.98,2.09726552]
[1747416533432,64.6118,171.99,171.95,5.813]
[1747416533630,64.6118,171.99,171.96,2.09764554]
[1747416533830,64.6118,171.99,171.97,2.09764554]
[1747416534040,64.6118,171.99,171.96,5.8128]
[1747416534341,5.8122,171.98,171.89,117.6]
[1747416534533,5.8122,171.98,171.94,5.8133]
[1747416534835,5.8122,171.98,171.95,2.09863189]
[1747416535032,5.8125,171.97,171.96,2.09863189]
[1747416535234,5.8125,171.97,171.96,2.09880299]
[1747416536145,58.8,171.99,171.96,2.09880299]
[1747416536345,58.8,171.99,171.97,2.09880299]
[1747416536542,58.8,171.99,171.91,8.48133226]
[1747416536741,58.8,171.99,171.92,2.0972918]
[1747416537046,58.8,171.99,171.93,2.09695474]
[1747416537342,58.8,171.99,171.94,2.09695474]
[1747416537543,58.8,171.99,171.95,2.09695474]
[1747416537843,58.8,171.99,171.96,2.09695474]
[1747416538045,5.8129,171.96,171.93,5.8136]
[1747416538250,5.8129,171.96,171.94,2.09730544]